[Event "29. Klatovy A 2023"]
[Site "Klatovy"]
[Date "2023.07.07"]
[Round "7.10"]
[White "Kupsa, Matej 2001"]
[Black "Mametev, Artem"]
[Result "1-0"]
[ECO "D00"]
[WhiteElo "2145"]
[BlackElo "1991"]
[PlyCount "111"]
[EventDate "2023.07.01"]
[EventType "swiss"]
[EventRounds "9"]
[EventCountry "CZE"]
[TimeControl "120+30"]

1. d4 {[%emt 0:00:25]} d5 {[%emt 0:00:05]} 2. f4 {[%emt 0:01:47]} Nf6 {[%emt 0:00:41]} 3. Nf3 {[%emt 0:00:09]} Bf5 {[%emt 0:00:33]} 4. e3 {[%emt 0:00:07]} e6 {[%emt 0:00:29]} 5. Be2 {[%emt 0:00:39]} Bd6 {[%emt 0:00:43]} 6. O-O {[%emt 0:00:07]} O-O {[%emt 0:00:08]} 7. Nbd2 {[%emt 0:05:07]} Nbd7 {[%emt 0:07:27]} 8. Ne5 {[%emt 0:04:14]} Ne4 {[%emt 0:02:00]} 9. g4 {[%emt 0:02:28]} Nxd2 {[%emt 0:00:06]} 10. Bxd2 {[%emt 0:00:38]} Be4 {[%emt 0:00:35]} 11. Be1 {[%emt 0:02:51]} Nxe5 {[%emt 0:12:19]} 12. fxe5 {[%emt 0:00:50]} Be7 {[%emt 0:00:08]} 13. Bd3 {[%emt 0:01:47]} Bg5 {[%emt 0:03:17]} 14. Qe2 {[%emt 0:01:17]} Bxd3 {[%emt 0:07:14]} 15. Qxd3 {[%emt 0:18:48]} Bh4 {[%emt 0:01:02]} 16. Rf4 {[%emt 0:27:36]} Bxe1 {[%emt 0:02:57]} 17. Rxe1 {[%emt 0:00:41]} Qh4 {[%emt 0:00:25]} 18. Ref1 {[%emt 0:00:57]} f6 {[%emt 0:28:25]} 19. exf6 {[%emt 0:02:54]} Rxf6 {[%emt 0:00:13]} 20. Rxf6 {[%emt 0:03:08]} gxf6 {[%emt 0:00:08]} 21. Qe2 {[%emt 0:13:48]} Kf7 {[%emt 0:09:23]} 22. Rf2 {[%emt 0:07:39]} Rg8 {[%emt 0:01:04]} 23. Rg2 {[%emt 0:00:01]} c6 {[%emt 0:02:30]} 24. Kf1 {[%emt 0:01:43]} h5 {[%emt 0:04:16]} 25. gxh5 {[%emt 0:02:30]} Qh3 {[%emt 0:01:41]} 26. h6 {[%emt 0:03:08]} Rxg2 {[%emt 0:00:24]} 27. Qxg2 {[%emt 0:00:02]} Qxh6 {[%emt 0:00:34]} 28. Qg3 {[%emt 0:03:22]} Qh5 {[%emt 0:01:23]} 29. Ke1 {[%emt 0:02:36]} e5 {[%emt 0:00:53]} 30. dxe5 {[%emt 0:02:57]} fxe5 {[%emt 0:00:32]} 31. Kd2 {[%emt 0:00:47]} c5 {[%emt 0:01:35]} 32. Qg2 {[%emt 0:01:54]} e4 {[%emt 0:01:08]} 33. Qg3 {[%emt 0:01:19]} b6 {[%emt 0:09:00]} 34. Qf4+ {[%emt 0:04:18]} Ke6 {[%emt 0:03:02]} 35. c4 {[%emt 0:01:20]} Kd7 {[%emt 0:00:45]} 36. h4 {[%emt 0:00:22]} a6 {[%emt 0:05:55]} 37. a4 {[%emt 0:00:46]} Ke6 {[%emt 0:09:02]} 38. Qc7 {[%emt 0:02:26]} Qxh4 {[%emt 0:02:51]} 39. Qxb6+ {[%emt 0:00:14]} Kd7 {[%emt 0:00:25]} 40. Qb7+ {[%emt 0:00:39]} Ke8 {[%emt 0:01:51]} 41. Qc6+ {[%emt 0:00:32]} Kf7 {[%emt 0:01:03]} 42. Qxd5+ {[%emt 0:00:09]} Ke8 {[%emt 0:00:05]} 43. Qxc5 {[%emt 0:01:03]} Qf2+ {[%emt 0:00:10]} 44. Kc3 {[%emt 0:00:19]} Qe1+ {[%emt 0:00:16]} 45. Kd4 {[%emt 0:00:20]} Qd2+ {[%emt 0:02:12]} 46. Kxe4 {[%emt 0:00:09]} Qc2+ {[%emt 0:00:06]} 47. Kd5 {[%emt 0:00:36]} Qxb2 {[%emt 0:00:56]} 48. Qc8+ {[%emt 0:00:24]} Ke7 {[%emt 0:00:06]} 49. Qe6+ {[%emt 0:00:16]} Kd8 {[%emt 0:00:34]} 50. Qd6+ {[%emt 0:00:09]} Kc8 {[%emt 0:00:21]} 51. Qxa6+ {[%emt 0:00:08]} Kd8 {[%emt 0:00:25]} 52. Qd6+ {[%emt 0:00:20]} Kc8 {[%emt 0:00:05]} 53. a5 {[%emt 0:02:30]} Qg2+ {[%emt 0:05:00]} 54. e4 {[%emt 0:00:25]} Qe2 {[%emt 0:00:51]} 55. Qe6+ {[%emt 0:00:35]} Kd8 {[%emt 0:00:17]} 56. Kc6 {[%emt 0:00:58]} 1-0

[Event "29. Klatovy A 2023"]
[Site "Klatovy"]
[Date "2023.07.07"]
[Round "7.11"]
[White "Hladky, Tadeas"]
[Black "Ret, Adam Josef"]
[Result "1/2-1/2"]
[ECO "B31"]
[WhiteElo "2046"]
[BlackElo "2133"]
[PlyCount "40"]
[EventDate "2023.07.01"]
[EventType "swiss"]
[EventRounds "9"]
[EventCountry "CZE"]
[TimeControl "120+30"]

1. e4 {[%emt 0:00:02]} c5 {[%emt 0:00:14]} 2. Nf3 {[%emt 0:00:14]} Nc6 {[%emt 0:00:11]} 3. Bb5 {[%emt 0:00:11]} g6 {[%emt 0:00:19]} 4. O-O {[%emt 0:00:12]} Bg7 {[%emt 0:00:32]} 5. Re1 {[%emt 0:00:18]} Nf6 {[%emt 0:02:05]} 6. e5 {[%emt 0:00:13]} Nd5 {[%emt 0:01:15]} 7. Nc3 {[%emt 0:00:13]} Nc7 {[%emt 0:00:37]} 8. Bxc6 {[%emt 0:00:12]} dxc6 {[%emt 0:00:15]} 9. Ne4 {[%emt 0:00:11]} b6 {[%emt 0:01:07]} 10. Nf6+ {[%emt 0:00:22]} Kf8 {[%emt 0:00:40]} 11. Ne4 {[%emt 0:00:13]} Bg4 {[%emt 0:00:21]} 12. d3 {[%emt 0:00:09]} Ne6 {[%emt 0:00:30]} 13. h3 {[%emt 0:02:21]} Bxf3 {[%emt 0:00:52]} 14. Qxf3 {[%emt 0:00:59]} h6 {[%emt 0:01:33]} 15. Ng3 {[%emt 0:06:57]} Nd4 {[%emt 0:21:27]} 16. Qd1 {[%emt 0:02:22]} Qd5 {[%emt 0:01:08]} 17. f4 {[%emt 0:18:49]} Rd8 {[%emt 0:01:56]} 18. Be3 {[%emt 0:01:46]} f5 {[%emt 0:15:23]} 19. c3 {[%emt 0:07:23]} Ne6 {[%emt 0:01:36]} 20. Qa4 {[%emt 0:03:19]} Kf7 {[%emt 0:16:06]} 1/2-1/2

[Event "29. Klatovy A 2023"]
[Site "Klatovy"]
[Date "2023.07.07"]
[Round "7.12"]
[White "Stary, Vojtech"]
[Black "Jordanov, Mihail"]
[Result "0-1"]
[ECO "C47"]
[WhiteElo "1822"]
[BlackElo "2140"]
[PlyCount "140"]
[EventDate "2023.07.01"]
[EventType "swiss"]
[EventRounds "9"]
[EventCountry "CZE"]
[TimeControl "120+30"]

1. e4 {[%emt 0:00:02]} e5 {[%emt 0:00:08]} 2. Nf3 {[%emt 0:00:07]} Nc6 {[%emt 0:00:06]} 3. Nc3 {[%emt 0:00:13]} Nf6 {[%emt 0:00:32]} 4. d4 {[%emt 0:00:12]} exd4 {[%emt 0:00:06]} 5. Nxd4 {[%emt 0:00:10]} Bb4 {[%emt 0:00:04]} 6. Nxc6 {[%emt 0:00:13]} bxc6 {[%emt 0:00:08]} 7. Bd3 {[%emt 0:00:13]} d5 {[%emt 0:00:18]} 8. exd5 {[%emt 0:00:13]} cxd5 {[%emt 0:00:08]} 9. O-O {[%emt 0:00:10]} O-O {[%emt 0:00:16]} 10. Bg5 {[%emt 0:00:10]} c6 {[%emt 0:00:06]} 11. Qf3 {[%emt 0:00:17]} Bd6 {[%emt 0:00:36]} 12. h3 {[%emt 0:00:31]} Rb8 {[%emt 0:01:57]} 13. b3 {[%emt 0:04:08]} h6 {[%emt 0:12:00]} 14. Bf4 {[%emt 0:02:28]} Be6 {[%emt 0:08:53]} 15. Bxd6 {[%emt 0:04:16]} Qxd6 {[%emt 0:00:07]} 16. Rfe1 {[%emt 0:02:43]} Rfe8 {[%emt 0:11:59]} 17. Ne2 {[%emt 0:04:02]} Nd7 {[%emt 0:07:19]} 18. Nd4 {[%emt 0:05:35]} g6 {[%emt 0:04:52]} 19. Qe3 {[%emt 0:09:10]} Kg7 {[%emt 0:03:27]} 20. Nxe6+ {[%emt 0:04:37]} fxe6 {[%emt 0:09:07]} 21. Qxa7 {[%emt 0:04:35]} c5 {[%emt 0:01:12]} 22. Qa5 {[%emt 0:02:40]} Rf8 {[%emt 0:06:55]} 23. Qd2 {[%emt 0:02:58]} Rb4 {[%emt 0:07:39]} 24. Re3 {[%emt 0:09:16]} e5 {[%emt 0:06:15]} 25. Rg3 {[%emt 0:05:18]} e4 {[%emt 0:09:11]} 26. c3 {[%emt 0:03:35]} Rb6 {[%emt 0:01:33]} 27. Bc2 {[%emt 0:04:58]} Nf6 {[%emt 0:00:41]} 28. Re1 {[%emt 0:04:34]} Re8 {[%emt 0:04:40]} 29. a4 {[%emt 0:04:34]} d4 {[%emt 0:03:48]} 30. cxd4 {[%emt 0:06:58]} cxd4 {[%emt 0:00:29]} 31. Rb1 {[%emt 0:03:05]} Qb4 {[%emt 0:04:59]} 32. Qxb4 {[%emt 0:03:35]} Rxb4 {[%emt 0:00:05]} 33. Rd1 {[%emt 0:03:55]} Rc8 {[%emt 0:06:43]} 34. Rd2 {[%emt 0:01:51]} g5 {[%emt 0:04:09]} 35. Bd1 {[%emt 0:03:29]} Rc1 {[%emt 0:00:39]} 36. Kh2 {[%emt 0:01:44]} e3 {[%emt 0:04:13]} 37. fxe3 {[%emt 0:07:28]} Ne4 {[%emt 0:01:00]} 38. Rd3 {[%emt 0:00:15]} Nf2 {[%emt 0:02:58]} 39. exd4 {[%emt 0:01:35]} Rxd1 {[%emt 0:00:27]} 40. Rxd1 {[%emt 0:00:31]} Nxd1 {[%emt 0:00:02]} 41. h4 {[%emt 0:01:15]} Kg6 {[%emt 0:00:45]} 42. hxg5 {[%emt 0:00:12]} hxg5 {[%emt 0:00:01]} 43. Rd3 {[%emt 0:01:58]} Nf2 {[%emt 0:00:21]} 44. Rd2 {[%emt 0:01:13]} Ne4 {[%emt 0:00:30]} 45. Rd3 {[%emt 0:00:24]} Nf2 {[%emt 0:00:47]} 46. Rd2 {[%emt 0:00:32]} Ne4 {[%emt 0:02:02]} 47. Rd3 {[%emt 0:00:22]} Kf5 {[%emt 0:02:54]} 48. Kg1 {[%emt 0:03:15]} Ke6 {[%emt 0:00:34]} 49. d5+ {[%emt 0:01:37]} Kd6 {[%emt 0:01:08]} 50. g3 {[%emt 0:01:38]} Nc5 {[%emt 0:00:51]} 51. Rf3 {[%emt 0:01:13]} Rxb3 {[%emt 0:00:57]} 52. Rf5 {[%emt 0:01:20]} Rxg3+ {[%emt 0:00:41]} 53. Kh2 {[%emt 0:00:32]} Ne4 {[%emt 0:00:33]} 54. Rf8 {[%emt 0:00:55]} Ra3 {[%emt 0:01:46]} 55. Rd8+ {[%emt 0:00:56]} Ke5 {[%emt 0:00:37]} 56. Ra8 {[%emt 0:00:29]} Kxd5 {[%emt 0:00:19]} 57. a5 {[%emt 0:00:23]} Kc5 {[%emt 0:01:04]} 58. Re8 {[%emt 0:00:46]} Kd4 {[%emt 0:00:37]} 59. Ra8 {[%emt 0:01:41]} Ke3 {[%emt 0:01:41]} 60. a6 {[%emt 0:00:37]} g4 {[%emt 0:01:17]} 61. a7 {[%emt 0:00:32]} Ra2+ {[%emt 0:00:54]} 62. Kg1 {[%emt 0:01:50]} Ra1+ {[%emt 0:00:01]} 63. Kg2 {[%emt 0:00:19]} g3 {[%emt 0:00:13]} 64. Rb8 {[%emt 0:00:54]} Ra2+ {[%emt 0:00:55]} 65. Kg1 {[%emt 0:00:56]} Rxa7 {[%emt 0:00:06]} 66. Rb3+ {[%emt 0:00:21]} Kf4 {[%emt 0:00:07]} 67. Rb1 {[%emt 0:00:31]} Ra2 {[%emt 0:00:31]} 68. Rf1+ {[%emt 0:00:28]} Rf2 {[%emt 0:00:29]} 69. Ra1 {[%emt 0:00:17]} Nd2 {[%emt 0:00:18]} 70. Rc1 {[%emt 0:00:25]} Nf3+ {[%emt 0:00:07]} 0-1

[Event "29. Klatovy A 2023"]
[Site "Klatovy"]
[Date "2023.07.07"]
[Round "7.13"]
[White "Polak, Michal 2002"]
[Black "Kopta, Pavel"]
[Result "1/2-1/2"]
[ECO "B72"]
[WhiteElo "1959"]
[BlackElo "2209"]
[PlyCount "94"]
[EventDate "2023.07.01"]
[EventType "swiss"]
[EventRounds "9"]
[EventCountry "CZE"]
[TimeControl "120+30"]

1. e4 {[%emt 15:11:59]} c5 {[%emt 0:00:15]} 2. Nf3 {[%emt 0:00:15]} d6 {[%emt 0:00:32]} 3. d4 {[%emt 0:00:06]} cxd4 {[%emt 0:00:07]} 4. Nxd4 {[%emt 0:00:20]} Nf6 {[%emt 0:00:21]} 5. Nc3 {[%emt 0:00:06]} g6 {[%emt 0:00:11]} 6. Bc4 {[%emt 0:00:49]} Bg7 {[%emt 0:01:06]} 7. O-O {[%emt 0:01:50]} O-O {[%emt 0:01:43]} 8. Bb3 {[%emt 0:01:31]} Nc6 {[%emt 0:00:39]} 9. h3 {[%emt 0:09:40]} Bd7 {[%emt 0:06:23]} 10. Be3 {[%emt 0:03:37]} Rc8 {[%emt 0:01:53]} 11. Nxc6 {[%emt 0:15:58]} Bxc6 {[%emt 0:02:45]} 12. e5 {[%emt 0:16:07]} dxe5 {[%emt 0:14:18]} 13. Qxd8 {[%emt 0:06:55]} Rfxd8 {[%emt 0:01:14]} 14. Bxa7 {[%emt 0:00:11]} e6 {[%emt 0:01:00]} 15. Rad1 {[%emt 0:11:45]} Nd5 {[%emt 0:04:33]} 16. Ne4 {[%emt 0:06:39]} Ra8 {[%emt 0:06:53]} 17. Bc5 {[%emt 0:02:28]} b6 {[%emt 0:02:28]} 18. Ba3 {[%emt 0:10:43]} Nf4 {[%emt 0:03:07]} 19. f3 {[%emt 0:02:18]} Rd4 {[%emt 0:14:09]} 20. Nd6 {[%emt 0:10:12]} Bf8 {[%emt 0:11:50]} 21. Nc4 {[%emt 0:09:14]} Bxa3 {[%emt 0:06:19]} 22. Nxa3 {[%emt 0:00:07]} Rad8 {[%emt 0:05:15]} 23. c3 {[%emt 0:05:19]} Rd2 {[%emt 0:02:09]} 24. Rxd2 {[%emt 0:01:40]} Rxd2 {[%emt 0:00:09]} 25. Rf2 {[%emt 0:00:09]} Rxf2 {[%emt 0:01:34]} 26. Kxf2 {[%emt 0:00:04]} Nd3+ {[%emt 0:00:09]} 27. Ke3 {[%emt 0:00:39]} Nxb2 {[%emt 0:00:24]} 28. Kd2 {[%emt 0:02:19]} e4 {[%emt 0:08:57]} 29. Bc2 {[%emt 0:06:51]} exf3 {[%emt 0:04:57]} 30. gxf3 {[%emt 0:00:08]} b5 {[%emt 0:02:52]} 31. Be4 {[%emt 0:03:05]} Bd7 {[%emt 0:01:38]} 32. h4 {[%emt 0:01:35]} f5 {[%emt 0:12:53]} 33. Bd3 {[%emt 0:01:06]} Nxd3 {[%emt 0:02:13]} 34. Kxd3 {[%emt 0:00:03]} Kf7 {[%emt 0:01:35]} 35. Kd4 {[%emt 0:01:47]} Kf6 {[%emt 0:00:37]} 36. f4 {[%emt 0:00:05]} h6 {[%emt 0:00:05]} 37. c4 {[%emt 0:01:05]} bxc4 {[%emt 0:01:12]} 38. Nxc4 {[%emt 0:00:02]} g5 {[%emt 0:00:12]} 39. hxg5+ {[%emt 0:00:25]} hxg5 {[%emt 0:00:05]} 40. fxg5+ {[%emt 0:00:12]} Kxg5 {[%emt 0:00:06]} 41. Ke5 {[%emt 0:01:39]} f4 {[%emt 0:01:09]} 42. Nd2 {[%emt 0:01:33]} Kg4 {[%emt 0:00:40]} 43. a4 {[%emt 0:00:54]} Kg3 {[%emt 0:00:54]} 44. a5 {[%emt 0:00:21]} Bc8 {[%emt 0:00:19]} 45. Ne4+ {[%emt 0:00:36]} Kf3 {[%emt 0:01:02]} 46. Ng5+ {[%emt 0:00:26]} Ke3 {[%emt 0:00:24]} 47. a6 {[%emt 0:00:38]} Bxa6 {[%emt 0:00:35]} 1/2-1/2

[Event "29. Klatovy A 2023"]
[Site "Klatovy"]
[Date "2023.07.07"]
[Round "7.14"]
[White "Skypala, Ondrej"]
[Black "Zhang, Brian"]
[Result "1-0"]
[ECO "E01"]
[WhiteElo "2163"]
[BlackElo "1821"]
[PlyCount "51"]
[EventDate "2023.07.01"]
[EventType "swiss"]
[EventRounds "9"]
[EventCountry "CZE"]
[TimeControl "120+30"]

1. c4 {[%emt 0:00:02]} c6 {[%emt 0:00:21]} 2. g3 {[%emt 0:00:09]} d5 {[%emt 0:00:09]} 3. Nf3 {[%emt 0:00:11]} Nf6 {[%emt 0:00:46]} 4. Bg2 {[%emt 0:00:07]} e6 {[%emt 0:08:16]} 5. O-O {[%emt 0:00:26]} Nbd7 {[%emt 0:00:40]} 6. b3 {[%emt 0:01:00]} Bd6 {[%emt 0:04:00]} 7. Bb2 {[%emt 0:01:51]} O-O {[%emt 0:03:38]} 8. d4 {[%emt 0:01:19]} b6 {[%emt 0:03:29]} 9. Nbd2 {[%emt 0:09:40]} Bb7 {[%emt 0:00:58]} 10. Rc1 {[%emt 0:01:40]} Qe7 {[%emt 0:19:33]} 11. Ne5 {[%emt 0:06:28]} Rac8 {[%emt 0:05:06]} 12. Re1 {[%emt 0:02:18]} Rfd8 {[%emt 0:10:14]} 13. Nxd7 {[%emt 0:02:19]} Qxd7 {[%emt 0:04:36]} 14. c5 {[%emt 0:01:13]} Bf8 {[%emt 0:15:51]} 15. Qc2 {[%emt 0:05:58]} g6 {[%emt 0:13:04]} 16. f3 {[%emt 0:01:54]} Bg7 {[%emt 0:05:26]} 17. Rcd1 {[%emt 0:01:45]} Qe7 {[%emt 0:05:27]} 18. b4 {[%emt 0:03:03]} b5 {[%emt 0:05:45]} 19. e4 {[%emt 0:03:07]} dxe4 {[%emt 0:02:15]} 20. fxe4 {[%emt 0:00:38]} e5 {[%emt 0:03:55]} 21. Bh3 {[%emt 0:00:51]} exd4 {[%emt 0:07:58]} 22. Bxc8 {[%emt 0:04:17]} d3 {[%emt 0:02:24]} 23. Qb1 {[%emt 0:00:59]} Bxc8 {[%emt 0:00:29]} 24. Nf3 {[%emt 0:01:02]} Nxe4 {[%emt 0:06:31]} 25. Bxg7 {[%emt 0:00:23]} Bg4 {[%emt 0:01:37]} 26. Rxd3 {[%emt 0:00:46]} 1-0

[Event "29. Klatovy A 2023"]
[Site "Klatovy"]
[Date "2023.07.07"]
[Round "7.15"]
[White "Simak, Roman"]
[Black "Pecka, Jan"]
[Result "0-1"]
[ECO "B20"]
[WhiteElo "1838"]
[BlackElo "2054"]
[PlyCount "30"]
[EventDate "2023.07.01"]
[EventType "swiss"]
[EventRounds "9"]
[EventCountry "CZE"]
[TimeControl "120+30"]

1. e4 {[%emt 0:04:24]} c5 {[%emt 0:00:44]} 2. b3 {[%emt 0:02:33]} d6 {[%emt 0:03:09]} 3. Bb2 {[%emt 0:03:35]} Nf6 {[%emt 0:00:06]} 4. Nc3 {[%emt 0:01:44]} Nc6 {[%emt 0:01:38]} 5. Bb5 {[%emt 0:00:54]} Bd7 {[%emt 0:00:36]} 6. a4 {[%emt 0:07:04]} g6 {[%emt 0:11:10]} 7. Nf3 {[%emt 0:16:14]} Bg7 {[%emt 0:07:34]} 8. Qe2 {[%emt 0:02:35]} O-O {[%emt 0:01:17]} 9. O-O {[%emt 0:11:19]} Nh5 {[%emt 0:04:48]} 10. Nd1 {[%emt 0:03:04]} Bh6 {[%emt 0:12:15]} 11. g3 {[%emt 0:01:21]} e5 {[%emt 0:01:28]} 12. Nh4 {[%emt 0:08:44]} Nf4 {[%emt 0:02:07]} 13. gxf4 {[%emt 0:01:47]} Qxh4 {[%emt 0:04:12]} 14. fxe5 {[%emt 0:00:30]} Bh3 {[%emt 0:02:12]} 15. exd6 {[%emt 0:05:55]} Qg5+ {[%emt 0:00:17]} 0-1

[Event "29. Klatovy A 2023"]
[Site "Klatovy"]
[Date "2023.07.07"]
[Round "7.16"]
[White "Strnad, Jakub"]
[Black "Novotny, David"]
[Result "0-1"]
[ECO "B35"]
[WhiteElo "1957"]
[BlackElo "2034"]
[PlyCount "44"]
[EventDate "2023.07.01"]
[EventType "swiss"]
[EventRounds "9"]
[EventCountry "CZE"]
[TimeControl "120+30"]

1. e4 {[%emt 0:00:01]} c5 {[%emt 0:00:26]} 2. Nf3 {[%emt 0:00:22]} Nc6 {[%emt 0:00:44]} 3. d4 {[%emt 0:00:24]} cxd4 {[%emt 0:00:08]} 4. Nxd4 {[%emt 0:00:08]} g6 {[%emt 0:00:09]} 5. Nc3 {[%emt 0:00:29]} Bg7 {[%emt 0:00:21]} 6. Be3 {[%emt 0:00:29]} Nf6 {[%emt 0:00:14]} 7. Bc4 {[%emt 0:03:43]} O-O {[%emt 0:00:53]} 8. f3 {[%emt 0:02:05]} Qb6 {[%emt 0:04:33]} 9. Bb3 {[%emt 0:02:42]} Nxe4 {[%emt 0:00:54]} 10. Nd5 {[%emt 0:00:09]} Qa5+ {[%emt 0:01:02]} 11. c3 {[%emt 0:00:43]} Nc5 {[%emt 0:28:04]} 12. Nxc6 {[%emt 0:09:41]} dxc6 {[%emt 0:02:59]} 13. Nxe7+ {[%emt 0:00:16]} Kh8 {[%emt 0:00:03]} 14. Nxc8 {[%emt 0:00:29]} Re8 {[%emt 0:10:21]} 15. Kf2 {[%emt 0:09:33]} Raxc8 {[%emt 0:02:35]} 16. Bxf7 {[%emt 0:02:56]} Rxe3 {[%emt 0:03:51]} 17. Kxe3 {[%emt 0:09:02]} Qb6 {[%emt 0:19:27]} 18. f4 {[%emt 0:11:21]} Rf8 {[%emt 0:12:40]} 19. Kf3 {[%emt 0:05:15]} Qxb2 {[%emt 0:11:40]} 20. Qc1 {[%emt 0:09:40]} Qb5 {[%emt 0:05:47]} 21. Bb3 {[%emt 0:11:51]} Qd3+ {[%emt 0:10:41]} 22. Qe3 {[%emt 0:00:58]} Rxf4+ {[%emt 0:01:29]} 0-1

[Event "29. Klatovy A 2023"]
[Site "Klatovy"]
[Date "2023.07.07"]
[Round "7.17"]
[White "Folkova, Martina"]
[Black "Mik, Tomas"]
[Result "1/2-1/2"]
[ECO "B83"]
[WhiteElo "2049"]
[BlackElo "1940"]
[PlyCount "106"]
[EventDate "2023.07.01"]
[EventType "swiss"]
[EventRounds "9"]
[EventCountry "CZE"]
[TimeControl "120+30"]

1. e4 {[%emt 0:02:38]} c5 {[%emt 0:00:08]} 2. Nf3 {[%emt 0:00:04]} e6 {[%emt 0:00:04]} 3. d4 {[%emt 0:00:07]} cxd4 {[%emt 0:00:04]} 4. Nxd4 {[%emt 0:00:09]} Nf6 {[%emt 0:00:05]} 5. Nc3 {[%emt 0:00:04]} d6 {[%emt 0:00:05]} 6. Be2 {[%emt 0:00:38]} Be7 {[%emt 0:00:09]} 7. O-O {[%emt 0:00:47]} O-O {[%emt 0:00:09]} 8. f4 {[%emt 0:00:56]} Nc6 {[%emt 0:00:10]} 9. Be3 {[%emt 0:00:55]} e5 {[%emt 0:00:11]} 10. Nxc6 {[%emt 0:05:05]} bxc6 {[%emt 0:00:06]} 11. fxe5 {[%emt 0:00:41]} dxe5 {[%emt 0:00:09]} 12. Qe1 {[%emt 0:06:47]} Qc7 {[%emt 0:03:32]} 13. Qg3 {[%emt 0:06:51]} Kh8 {[%emt 0:02:18]} 14. Kh1 {[%emt 0:09:16]} Be6 {[%emt 0:01:42]} 15. Bd3 {[%emt 0:05:29]} Rab8 {[%emt 0:00:30]} 16. b3 {[%emt 0:02:40]} Rfd8 {[%emt 0:11:40]} 17. h3 {[%emt 0:02:09]} Qa5 {[%emt 0:14:43]} 18. Na4 {[%emt 0:06:41]} Nd7 {[%emt 0:11:56]} 19. Qf2 {[%emt 0:06:31]} c5 {[%emt 0:05:42]} 20. Nb2 {[%emt 0:09:15]} Qc7 {[%emt 0:06:39]} 21. Bc4 {[%emt 0:02:34]} Bxc4 {[%emt 0:04:31]} 22. Nxc4 {[%emt 0:00:15]} f6 {[%emt 0:01:24]} 23. Qe2 {[%emt 0:07:33]} Qc6 {[%emt 0:01:04]} 24. Nd2 {[%emt 0:04:58]} Nf8 {[%emt 0:01:27]} 25. Rad1 {[%emt 0:04:59]} Ne6 {[%emt 0:00:35]} 26. c3 {[%emt 0:00:30]} Rb7 {[%emt 0:02:28]} 27. Qg4 {[%emt 0:05:56]} Rbd7 {[%emt 0:03:40]} 28. Nc4 {[%emt 0:01:02]} Rd3 {[%emt 0:07:40]} 29. Rxd3 {[%emt 0:04:59]} Rxd3 {[%emt 0:00:13]} 30. Rd1 {[%emt 0:00:30]} Rxc3 {[%emt 0:14:58]} 31. Rd5 {[%emt 0:02:56]} h6 {[%emt 0:03:28]} 32. Qd1 {[%emt 0:10:00]} Nd4 {[%emt 0:03:40]} 33. Kh2 {[%emt 0:01:11]} Kh7 {[%emt 0:05:28]} 34. Bd2 {[%emt 0:01:29]} Rd3 {[%emt 0:04:44]} 35. Qf1 {[%emt 0:01:24]} Nf3+ {[%emt 0:00:52]} 36. gxf3 {[%emt 0:00:14]} Rxd5 {[%emt 0:00:06]} 37. exd5 {[%emt 0:00:09]} Qxd5 {[%emt 0:00:04]} 38. Qe2 {[%emt 0:00:35]} Qd7 {[%emt 0:01:36]} 39. Qe4+ {[%emt 0:02:20]} Kh8 {[%emt 0:00:12]} 40. Kg2 {[%emt 0:01:26]} Bd8 {[%emt 0:02:49]} 41. Be3 {[%emt 0:01:20]} Bb6 {[%emt 0:00:53]} 42. Qa8+ {[%emt 0:01:47]} Kh7 {[%emt 0:00:13]} 43. a4 {[%emt 0:02:39]} Qd1 {[%emt 0:02:57]} 44. Qe4+ {[%emt 0:00:09]} Kh8 {[%emt 0:00:19]} 45. a5 {[%emt 0:00:31]} Bd8 {[%emt 0:00:30]} 46. Qa8 {[%emt 0:01:45]} Kh7 {[%emt 0:00:57]} 47. Qb8 {[%emt 0:04:12]} Qc2+ {[%emt 0:01:08]} 48. Bd2 {[%emt 0:02:17]} Bxa5 {[%emt 0:00:24]} 49. Qd6 {[%emt 0:01:00]} Bb4 {[%emt 0:01:23]} 50. Qd5 {[%emt 0:00:36]} Qxb3 {[%emt 0:00:50]} 51. Qe4+ {[%emt 0:00:35]} Kh8 {[%emt 0:00:32]} 52. Qa8+ {[%emt 0:02:17]} Kh7 {[%emt 0:00:13]} 53. Qe4+ {[%emt 0:00:16]} Kh8 {[%emt 0:00:39]} 1/2-1/2

[Event "29. Klatovy A 2023"]
[Site "Klatovy"]
[Date "2023.07.07"]
[Round "7.18"]
[White "Martirosyan, David"]
[Black "Flajsman, Petr"]
[Result "1/2-1/2"]
[ECO "A40"]
[WhiteElo "1908"]
[BlackElo "1956"]
[PlyCount "47"]
[EventDate "2023.07.01"]
[EventType "swiss"]
[EventRounds "9"]
[EventCountry "CZE"]
[TimeControl "120+30"]

1. d4 {[%emt 0:00:03]} b5 {[%emt 0:01:04]} 2. e4 {[%emt 0:01:34]} Bb7 {[%emt 0:00:07]} 3. Nd2 {[%emt 0:02:18]} a6 {[%emt 0:00:08]} 4. Ngf3 {[%emt 0:00:56]} e6 {[%emt 0:00:35]} 5. Bd3 {[%emt 0:02:42]} c5 {[%emt 0:00:09]} 6. c3 {[%emt 0:00:13]} d6 {[%emt 0:03:02]} 7. O-O {[%emt 0:00:57]} Nf6 {[%emt 0:00:58]} 8. Re1 {[%emt 0:03:20]} Be7 {[%emt 0:00:51]} 9. a4 {[%emt 0:03:35]} c4 {[%emt 0:15:19]} 10. Bc2 {[%emt 0:02:12]} Qc7 {[%emt 0:05:30]} 11. Qe2 {[%emt 0:04:01]} e5 {[%emt 0:01:54]} 12. Nf1 {[%emt 0:03:18]} O-O {[%emt 0:00:19]} 13. Ng3 {[%emt 0:02:07]} g6 {[%emt 0:02:15]} 14. Bg5 {[%emt 0:09:31]} Nbd7 {[%emt 0:05:20]} 15. Nh4 {[%emt 0:03:46]} Rfe8 {[%emt 0:04:22]} 16. Qd2 {[%emt 0:03:42]} Nf8 {[%emt 0:09:44]} 17. f4 {[%emt 0:02:36]} Ne6 {[%emt 0:03:43]} 18. Nf3 {[%emt 0:04:21]} Nd7 {[%emt 0:11:17]} 19. f5 {[%emt 0:05:09]} Nxg5 {[%emt 0:11:26]} 20. Nxg5 {[%emt 0:02:02]} Rac8 {[%emt 0:10:54]} 21. Rf1 {[%emt 0:04:29]} Bf6 {[%emt 0:06:14]} 22. Rf3 {[%emt 0:06:11]} Qb6 {[%emt 0:03:42]} 23. a5 {[%emt 0:11:45]} Qa7 {[%emt 0:00:32]} 24. Rd1 {[%emt 0:00:30]} 1/2-1/2

[Event "29. Klatovy A 2023"]
[Site "Klatovy"]
[Date "2023.07.08"]
[Round "8.1"]
[White "Straka, Vojtech"]
[Black "Horak, Martin"]
[Result "1/2-1/2"]
[ECO "E00"]
[WhiteElo "2433"]
[BlackElo "2266"]
[PlyCount "57"]
[EventDate "2023.07.01"]
[EventType "swiss"]
[EventRounds "9"]
[EventCountry "CZE"]
[TimeControl "120+30"]

1. d4 {[%emt 0:00:03]} Nf6 {[%emt 0:01:10]} 2. c4 {[%emt 0:00:22]} e6 {[%emt 0:00:04]} 3. g3 {[%emt 0:00:27]} Bb4+ {[%emt 0:00:17]} 4. Nd2 {[%emt 0:01:12]} c5 {[%emt 0:02:11]} 5. a3 {[%emt 0:00:09]} Bxd2+ {[%emt 0:00:04]} 6. Qxd2 {[%emt 0:00:11]} cxd4 {[%emt 0:00:03]} 7. Nf3 {[%emt 0:00:28]} b6 {[%emt 0:03:29]} 8. Qxd4 {[%emt 0:09:28]} Bb7 {[%emt 0:04:45]} 9. Bg2 {[%emt 0:03:53]} Nc6 {[%emt 0:01:36]} 10. Qc3 {[%emt 0:10:54]} Rc8 {[%emt 0:05:18]} 11. b4 {[%emt 0:08:24]} O-O {[%emt 0:02:22]} 12. Bb2 {[%emt 0:00:15]} d5 {[%emt 0:03:02]} 13. cxd5 {[%emt 0:03:32]} Na5 {[%emt 0:05:14]} 14. Qd3 {[%emt 0:08:08]} Nc4 {[%emt 0:00:05]} 15. Bd4 {[%emt 0:09:06]} Bxd5 {[%emt 0:01:07]} 16. O-O {[%emt 0:06:29]} Re8 {[%emt 0:20:08]} 17. Rfd1 {[%emt 0:28:50]} e5 {[%emt 0:17:40]} 18. Bc3 {[%emt 0:00:25]} Qe7 {[%emt 0:01:27]} 19. Nxe5 {[%emt 0:10:43]} Nxe5 {[%emt 0:03:42]} 20. Bxe5 {[%emt 0:00:09]} Qxe5 {[%emt 0:00:50]} 21. Bxd5 {[%emt 0:00:09]} Nxd5 {[%emt 0:00:18]} 22. Qxd5 {[%emt 0:00:08]} Qxe2 {[%emt 0:00:11]} 23. Rd2 {[%emt 0:00:49]} Qe5 {[%emt 0:01:28]} 24. Qxe5 {[%emt 0:05:30]} Rxe5 {[%emt 0:00:05]} 25. Rd7 {[%emt 0:00:14]} a5 {[%emt 0:02:11]} 26. Rad1 {[%emt 0:00:11]} g6 {[%emt 0:01:02]} 27. R1d6 {[%emt 0:02:56]} axb4 {[%emt 0:02:02]} 28. axb4 {[%emt 0:00:16]} Rf5 {[%emt 0:00:47]} 29. Rd8+ {[%emt 0:04:16]} 1/2-1/2